fUST/lending_fUST_20241114
["ID","MTS","AMOUNT","RATE_DAILY","PERIOD"]
[342190388,1731573073581,-4889.16,0.00022739,2]
[342190389,1731573073591,-812.97,0.00022739,2]
[342190390,1731573073601,-500.0,0.00022739,2]
[342190391,1731573073612,-174.25839671,0.00022739,2]
[342190392,1731573073630,-6480.3,0.00022739,2]
[342190393,1731573073648,-500.0,0.00022739,2]
[342190394,1731573073664,-763.17,0.00022739,2]
[342190395,1731573073674,-554.40644821,0.00022739,2]
[342190396,1731573073684,-500.0,0.00022739,2]
[342190397,1731573073694,-570.83,0.00022739,2]
[342190398,1731573073706,-1728.07,0.00022739,2]
[342190399,1731573073717,-500.0,0.00022739,2]
[342190400,1731573073727,-183.18851667,0.00022739,2]
[342190401,1731573073736,-500.2,0.00022739,2]
[342190402,1731573073746,-785.99,0.00022739,2]
[342190403,1731573073756,-500.0,0.00022739,2]
[342190404,1731573073766,-428.64811287,0.00022739,2]
[342190405,1731573073775,-749.97,0.00022739,2]
[342190406,1731573073785,-500.0,0.00022739,2]
[342190407,1731573073795,-412.85798447,0.00022739,2]
[342190408,1731573073805,-1127.81,0.00022739,2]
[342190409,1731573073814,-691.75,0.00022739,2]
[342190410,1731573073824,-500.0,0.00022739,2]
[342190411,1731573073836,-500.0,0.00022739,2]
[342190412,1731573073846,-845.95,0.00022739,2]
[342190413,1731573073858,-1203.61,0.00022739,2]
[342190414,1731573073867,-500.0,0.00022739,2]
[342190415,1731573073877,-500.0,0.00022739,2]
[342190416,1731573073887,-500.0,0.00022739,2]
[342190417,1731573073899,-500.0,0.00022739,2]
[342190418,1731573073909,-500.0,0.00022739,2]
[342190419,1731573073918,-817.32,0.00022739,2]
[342190420,1731573073928,-1024.69,0.00022739,2]
[342190421,1731573073938,-500.0,0.00022739,2]
[342190422,1731573073948,-500.0,0.00022739,2]
[342190423,1731573073958,-500.0,0.00022739,2]
[342190424,1731573073967,-238.99615812,0.00022739,2]
[342190425,1731573073977,-500.0,0.00022739,2]
[342190426,1731573073987,-500.0,0.00022739,2]
[342190427,1731573073997,-2258.0,0.00022789,2]
[342190428,1731573074006,-485.738914,0.0002286,7]
[342190429,1731573074015,-485.738907,0.0002286,7]
[342190430,1731573074025,-242.26513556,0.00023,2]
[342190431,1731573074035,-570.0,0.00023,2]
[342190432,1731573074044,-159.0,0.00023,2]
[342190433,1731573074054,-200.0,0.00023,2]
[342190434,1731573074064,-151.0,0.00023013,7]
[342190435,1731573074073,-151.0,0.00023013,7]
[342190436,1731573074086,-153.517899,0.00023013,7]
[342190437,1731573074095,-153.517895,0.00023013,7]
[342190438,1731573074105,-343.266896,0.00023013,7]
[342190439,1731573074115,-343.2669,0.00023013,7]
[342190440,1731573074124,-1496.705765,0.00023013,7]
[342190441,1731573074134,-1496.705772,0.00023013,7]
[342190442,1731573074143,-163.702493,0.00023013,7]
[342190443,1731573074153,-163.702501,0.00023013,7]
[342190444,1731573074162,-199.097967,0.00023013,7]
[342190445,1731573074172,-199.097958,0.00023013,7]
[342190446,1731573074181,-500.0,0.00023013,2]
[342190447,1731573074191,-500.0,0.00023013,2]
[342190448,1731573074199,-500.0,0.00023013,2]
[342190449,1731573074209,-500.0,0.00023013,2]
[342190450,1731573074218,-500.0,0.00023013,2]
[342190451,1731573074227,-500.0,0.00023013,2]
[342190452,1731573074236,-504.55,0.00023013,2]
[342190453,1731573074246,-547.60865789,0.00023013,2]
[342190454,1731573074255,-513.20144115,0.00023013,2]
[342190455,1731573074264,-757.47,0.00023013,2]
[342190456,1731573074274,-500.0,0.00023013,2]
[342190457,1731573074283,-525.41507598,0.00023013,2]
[342190458,1731573074293,-500.0,0.00023013,2]
[342190459,1731573074303,-504.81607176,0.00023013,2]
[342190460,1731573074313,-500.0,0.00023013,2]
[342190461,1731573074323,-200.0,0.00023013,2]
[342190462,1731573074336,-504.83116868,0.00023013,2]
[342190463,1731573074346,-500.0,0.00023013,2]
[342190464,1731573074356,-500.00410625,0.00023013,2]
[342190465,1731573074366,-835.68,0.00023013,2]
[342190466,1731573074377,-500.0,0.00023013,2]
[342190467,1731573074387,-500.0,0.00023013,2]
[342190468,1731573074396,-400.03059547,0.00023013,2]
[342190469,1731573074406,-500.0,0.00023013,2]
[342190470,1731573074415,-500.0,0.00023013,2]
[342190471,1731573074424,-500.0,0.00023013,2]
[342190472,1731573074434,-500.0,0.00023013,2]
[342190473,1731573074443,-584.24,0.00023013,2]
[342190474,1731573074452,-216.70809453,0.00023013,2]
[342190475,1731573074462,-500.0,0.00023013,2]
[342190476,1731573074471,-500.0,0.00023013,2]
[342190477,1731573074481,-500.0,0.00023013,2]
[342190478,1731573074490,-641.52,0.00023013,2]
[342190479,1731573074500,-500.0,0.00023013,2]
[342190480,1731573074510,-684.54,0.00023013,2]
[342190481,1731573074519,-496.38450324,0.00023013,2]
[342190482,1731573074528,-500.0,0.00023013,2]
[342190483,1731573074538,-500.0,0.00023013,2]
[342190484,1731573074547,-509.3,0.00023013,2]
[342190485,1731573074556,-500.0,0.00023013,2]
[342190486,1731573074566,-500.0,0.00023013,2]
[342190487,1731573074576,-697.04,0.00023013,2]
[342190488,1731573074587,-500.0,0.00023013,2]
[342190489,1731573074597,-500.0,0.00023013,2]
[342190490,1731573074606,-543.5,0.00023013,2]
[342190491,1731573074615,-500.0,0.00023013,2]
[342190492,1731573074625,-686.84,0.00023013,2]
[342190493,1731573074635,-500.0,0.00023013,2]
[342190494,1731573074644,-298.22795768,0.00023013,2]
[342190495,1731573074653,-500.0,0.00023013,2]
[342190496,1731573074662,-500.0,0.00023013,2]
[342190497,1731573074671,-587.81336303,0.00023013,2]
[342190498,1731573074680,-708.18,0.00023013,2]
[342190499,1731573074689,-648.32,0.00023013,2]
[342190500,1731573074699,-646.65,0.00023013,2]
[342190501,1731573074708,-500.0,0.00023013,2]
[342190502,1731573074718,-549.79,0.00023013,2]
[342190503,1731573074727,-503.85079326,0.00023013,2]
[342190504,1731573074737,-500.0,0.00023013,2]
[342190505,1731573074747,-500.0,0.00023013,2]
[342190506,1731573074756,-500.0,0.00023013,2]
[342190507,1731573074766,-162.9458349,0.00023013,2]
[342190508,1731573074775,-959.98,0.00023013,2]
[342190509,1731573074796,-500.0,0.00023013,2]
[342190510,1731573074959,-164.22603579,0.00023013,2]
[342190511,1731573074970,-500.0,0.00023013,2]
[342190512,1731573074980,-667.32,0.00023013,2]
[342190513,1731573074990,-410.61106147,0.00023013,2]
[342190514,1731573075000,-614.21,0.00023013,2]
[342190515,1731573075010,-500.0,0.00023013,2]
[342190516,1731573075020,-1074.05,0.00023013,2]
[342190517,1731573075030,-500.0,0.00023013,2]
[342190518,1731573075040,-500.0,0.00023013,2]
[342190519,1731573075049,-438.13381256,0.00023013,2]
[342190520,1731573075059,-583.08042484,0.00023013,2]
[342190521,1731573075069,-751.02,0.00023013,2]
[342190522,1731573075081,-500.0,0.00023013,2]
[342190523,1731573075092,-500.0,0.00023013,2]
[342190524,1731573075106,-500.0,0.00023013,2]
[342190525,1731573075116,-500.0,0.00023013,2]
[342190526,1731573075126,-500.0,0.00023013,2]
[342190527,1731573075136,-500.0,0.00023013,2]
[342190528,1731573075146,-160.26876482,0.00023013,2]
[342190529,1731573075155,-500.0,0.00023013,2]
[342190530,1731573075166,-500.0,0.00023013,2]
[342190531,1731573075175,-1017.4,0.00023013,2]
[342190532,1731573075186,-513.23707121,0.00023013,2]
[342190533,1731573075196,-500.0,0.00023013,2]
[342190534,1731573075206,-599.49272578,0.00023013,2]
[342190535,1731573075216,-700.81,0.00023013,2]
[342190536,1731573075226,-493.73584432,0.00023013,2]
[342190537,1731573075236,-500.0,0.00023013,2]
[342190538,1731573075246,-500.0,0.00023013,2]
[342190539,1731573075256,-500.0,0.00023013,2]
[342190540,1731573075266,-599.22,0.00023013,2]
[342190541,1731573075276,-554.43127574,0.00023013,2]
[342190542,1731573075286,-500.0,0.00023013,2]
[342190543,1731573075295,-500.0,0.00023013,2]
[342190544,1731573075305,-500.0,0.00023013,2]
[342190545,1731573075315,-500.0,0.00023013,2]
[342190546,1731573075324,-500.0,0.00023013,2]
[342190547,1731573075339,-500.0,0.00023013,2]
[342190548,1731573075349,-783.57,0.00023013,2]
[342190549,1731573075359,-1300.42651091,0.00023013,2]
[342190550,1731573075369,-646.63,0.00023013,2]
[342190551,1731573075379,-504.93000342,0.00023013,2]
[342190552,1731573075388,-500.0,0.00023013,2]
[342190553,1731573075398,-500.0,0.00023013,2]
[342190554,1731573075408,-627.53,0.00023013,2]
[342190555,1731573075418,-589.25,0.00023013,2]
[342190556,1731573075428,-500.0,0.00023013,2]
[342190557,1731573075438,-500.0,0.00023013,2]
[342190558,1731573075447,-500.0,0.00023013,2]
[342190559,1731573075456,-500.0,0.00023013,2]
[342190560,1731573075466,-500.0,0.00023013,2]
[342190561,1731573075476,-500.0,0.00023013,2]
[342190562,1731573075485,-537.38,0.00023013,2]
[342190563,1731573075495,-541.73,0.00023013,2]
[342190564,1731573075504,-500.0,0.00023013,2]
[342190565,1731573075514,-500.0,0.00023013,2]
[342190566,1731573075523,-500.0,0.00023013,2]
[342190567,1731573075532,-500.0,0.00023013,2]
[342190568,1731573075542,-500.0,0.00023013,2]
[342190569,1731573075551,-500.0,0.00023013,2]
[342190570,1731573075561,-500.0,0.00023013,2]
[342190571,1731573075570,-500.0,0.00023013,2]
[342190572,1731573075579,-500.0,0.00023013,2]
[342190573,1731573075596,-867.05,0.00023013,2]
[342190574,1731573075606,-500.0,0.00023013,2]
[342190575,1731573075616,-503.59,0.00023013,2]
[342190576,1731573075625,-713.83,0.00023013,2]
[342190577,1731573075635,-547.41,0.00023013,2]
[342190578,1731573075644,-466.58749023,0.00023013,2]
[342190579,1731573075654,-500.0,0.00023013,2]
[342190580,1731573075663,-856.07,0.00023013,2]
[342190581,1731573075673,-523.30109065,0.00023013,2]
[342190582,1731573075682,-500.0,0.00023013,2]
[342190583,1731573075691,-500.0,0.00023013,2]
[342190584,1731573075701,-500.0,0.00023013,2]
[342190585,1731573075711,-500.0,0.00023013,2]
[342190586,1731573075720,-500.0,0.00023013,2]
[342190587,1731573075730,-699.21,0.00023013,2]
[342190588,1731573075739,-500.0,0.00023013,2]
[342190589,1731573075749,-500.0,0.00023013,2]
[342190590,1731573075759,-500.0,0.00023013,2]
[342190591,1731573075769,-1084.66,0.00023013,2]
[342190592,1731573075778,-506.52126627,0.00023013,2]
[342190593,1731573075789,-926.01,0.00023013,2]
[342190594,1731573075799,-500.0,0.00023013,2]
[342190595,1731573075809,-500.0,0.00023013,2]
[342190596,1731573075819,-505.1482764,0.00023013,2]
[342190597,1731573075829,-628.32,0.00023013,2]
[342190598,1731573075842,-548.98025849,0.00023013,2]
[342190599,1731573075853,-500.0,0.00023013,2]
[342190600,1731573075867,-1271.83,0.00023013,2]
[342190601,1731573075876,-510.51144229,0.00023013,2]
[342190602,1731573075886,-500.0,0.00023013,2]
[342190603,1731573075895,-500.0,0.00023013,2]
[342190604,1731573075906,-500.0,0.00023013,2]
[342190605,1731573075916,-259.17643076,0.00023013,2]
[342190606,1731573075926,-500.0,0.00023013,2]
[342190607,1731573075937,-818.86,0.00023013,2]
[342190608,1731573075947,-500.0,0.00023013,2]
[342190609,1731573075956,-500.0,0.00023013,2]
[342190610,1731573075966,-500.0,0.00023013,2]
[342190611,1731573075976,-583.79,0.00023013,2]
[342190612,1731573075986,-500.0,0.00023013,2]
[342190613,1731573075996,-16282.68430635,0.00023013,2]
[342190614,1731573076211,-1062.66569365,0.00023013,2]
[342190615,1731573076220,-500.0,0.00023013,2]
[342190616,1731573076231,-508.9,0.00023013,2]
[342190617,1731573076240,-500.0,0.00023013,2]
[342190618,1731573076249,-500.0,0.00023013,2]
[342190619,1731573076259,-500.0,0.00023013,2]
[342190620,1731573076267,-511.15,0.00023013,2]
[342190621,1731573076277,-500.0,0.00023013,2]
[342190622,1731573076287,-500.0,0.00023013,2]
[342190623,1731573076296,-500.0,0.00023013,2]
[342190624,1731573076306,-1740.72,0.00023013,2]
[342190625,1731573076316,-500.0,0.00023013,2]
[342190626,1731573076327,-756.89,0.00023013,2]
[342190627,1731573076438,-500.0,0.00023013,2]
[342190628,1731573076450,-829.87,0.00023013,2]
[342190629,1731573076459,-500.0,0.00023013,2]
[342190630,1731573076469,-625.89,0.00023013,2]
[342190631,1731573076478,-500.0,0.00023013,2]
[342190632,1731573076488,-500.0,0.00023013,2]
[342190633,1731573076498,-520.64866122,0.00023013,2]
[342190634,1731573076507,-500.0,0.00023013,2]
[342190635,1731573076517,-718.12,0.00023013,2]
[342190636,1731573076527,-964.91,0.00023013,2]
[342190637,1731573076537,-4845.78,0.00023013,2]
[342190638,1731573076547,-500.0,0.00023013,2]
[342190639,1731573076557,-500.0,0.00023013,2]
[342190640,1731573076567,-1984.18,0.00023013,2]
[342190641,1731573076577,-501.49328052,0.00023013,2]
[342190642,1731573076591,-500.0,0.00023013,2]
[342190643,1731573076601,-512.02,0.00023013,2]
[342190644,1731573076611,-500.0,0.00023013,2]
[342190645,1731573076621,-1439.61,0.00023013,2]
[342190646,1731573076630,-725.06,0.00023013,2]
[342190647,1731573076639,-500.0,0.00023013,2]
[342190648,1731573076648,-561.35324335,0.00023013,2]
[342190649,1731573076658,-500.0,0.00023013,2]
[342190650,1731573076668,-922.15,0.00023013,2]
[342190651,1731573076679,-151.91140857,0.00023013,2]
[342190652,1731573076689,-500.0,0.00023013,2]
[342190653,1731573076699,-500.0,0.00023013,2]
[342190654,1731573076710,-504.43010506,0.00023013,2]
[342190655,1731573076719,-500.0,0.00023013,2]
[342190656,1731573076728,-500.0,0.00023013,2]
[342190657,1731573076738,-500.0,0.00023013,2]
[342190658,1731573076747,-500.0,0.00023013,2]
[342190659,1731573076756,-500.0,0.00023013,2]
[342190660,1731573076766,-2469.96,0.00023013,2]
[342190661,1731573076775,-927.32,0.00023013,2]
[342190662,1731573076785,-679.79,0.00023013,2]
[342190663,1731573076795,-500.0,0.00023013,2]
[342190664,1731573076804,-500.0,0.00023013,2]
[342190665,1731573076815,-1415.94,0.00023013,2]
[342190666,1731573076825,-1146.99,0.00023013,2]
[342190667,1731573076837,-500.0,0.00023013,2]
[342190668,1731573076847,-500.0,0.00023013,2]
[342190669,1731573076858,-500.0,0.00023013,2]
[342190670,1731573076869,-583.8,0.00023013,2]
[342190671,1731573076879,-500.0,0.00023013,2]
[342190672,1731573076889,-500.0,0.00023013,2]
[342190673,1731573076900,-1972.19,0.00023013,2]
[342190674,1731573076910,-500.0,0.00023013,2]
[342190675,1731573076920,-527.03116877,0.00023013,2]
[342190676,1731573076930,-545.6109835,0.00023013,2]
[342190677,1731573076942,-887.8,0.00023013,2]
[342190678,1731573076960,-3866.65,0.00023013,2]
[342190679,1731573076974,-500.0,0.00023013,2]
[342190680,1731573076983,-500.0,0.00023013,2]
[342190681,1731573076994,-500.0,0.00023013,2]
[342190682,1731573077004,-500.0,0.00023013,2]
[342190683,1731573077014,-206.26536324,0.00023013,2]
[342190684,1731573077029,-459.46008162,0.00023013,2]
[342190685,1731573077042,-362.80455514,0.00023013,2]
[342190686,1731573077052,-500.49,0.00023013,2]
[342190687,1731573077062,-265.05800893,0.00023013,2]
[342190688,1731573077076,-234.94199107,0.00023013,2]
[342190689,1731573077090,-500.6,0.00023013,2]
[342190690,1731573077101,-551.13,0.00023013,2]
[342190691,1731573077120,-554.7,0.00023013,2]
[342190692,1731573077147,-500.0,0.00023013,2]
[342190693,1731573077169,-500.0,0.00023013,2]
[342190694,1731573077192,-2235.09,0.00023013,2]
[342190695,1731573077217,-1562.1,0.00023013,2]
[342190696,1731573077238,-500.0,0.00023013,2]
[342190697,1731573077259,-500.0,0.00023013,2]
[342190698,1731573077274,-500.0,0.00023013,2]
[342190699,1731573077296,-1664.01568954,0.00023013,2]
[342190763,1731574232231,-199.578947,0.00013973,2]
[342190764,1731574232241,-300.0,0.00016537,2]
[342190765,1731574232250,-12241.62879999,0.00016538,2]
[342190851,1731574237910,-12658.37120001,0.00016538,2]
[342190853,1731574237920,-966.2931856,0.00016568,2]
[342190855,1731574237930,-96.14765939,0.00016644,2]
[342190857,1731574237941,-616.63841471,0.00016644,2]
[342190859,1731574237951,-2235.4164893,0.00016741,2]
[342190861,1731574237960,-1892.558924,0.00016788,2]
[342190863,1731574237970,-1106.74122937,0.0001697,2]
[342190865,1731574237979,-530.0,0.00017098,2]
[342190867,1731574237988,-183.372,0.00017098,2]
[342190869,1731574237998,-2388.629,0.00017098,2]
[342190871,1731574238007,-1122.666,0.00017098,2]
[342190873,1731574238017,-1892.558924,0.00017473,2]
[342190875,1731574238026,-500.0,0.00017525,2]
[342190877,1731574238040,-1892.558924,0.00018158,2]
[342190879,1731574238049,-420.0,0.00018191,2]
[342190881,1731574238059,-426.366,0.000186,2]
[342190883,1731574238068,-615.0,0.00019,2]
[342190885,1731574238077,-175.220229,0.00019178,2]
[342190887,1731574238087,-7015.625,0.0002,2]
[342190889,1731574238097,-186.0,0.0002,2]
[342190891,1731574238106,-7015.625,0.0002,2]
[342190893,1731574238116,-587.0,0.0002001,2]
[342190895,1731574238125,-530.0,0.00020098,2]
[342190897,1731574238135,-150.0,0.00020098,2]
[342190899,1731574238144,-2388.0,0.00020098,2]
[342190901,1731574238153,-1115.0,0.00020098,2]
[342190903,1731574238162,-153.0,0.00020233,2]
[342190906,1731574238171,-153.0,0.00020233,2]
[342190908,1731574238181,-153.0,0.00020233,2]
[342190910,1731574238190,-500.0,0.00020364,2]
[342190912,1731574238199,-199.578947,0.00020447,2]
[342190914,1731574238208,-151.0,0.0002058,2]
[342190917,1731574238220,-3000.0,0.00021,2]
[342190920,1731574238230,-693.87995462,0.0002101,2]
[342190923,1731574238242,-2306.12004538,0.0002101,2]
[342190925,1731574238251,-3000.0,0.0002102,2]
[342190927,1731574238260,-3000.0,0.0002103,2]
[342190929,1731574238270,-1586.98330191,0.0002104,2]
[342190935,1731574238316,-1413.01669809,0.0002104,2]
[342190937,1731574238325,-3000.0,0.0002105,2]
[342190939,1731574238335,-3000.0,0.0002106,2]
[342190940,1731574238343,-1671.98330191,0.0002107,2]
[342190972,1731574239906,-3781.45144509,0.0002107,2]
[342190973,1731574239916,-151.0,0.0002129,2]
[342190974,1731574239926,-151.0,0.0002129,2]
[342190975,1731574239935,-151.0,0.00021551,2]
[342190976,1731574239945,-1000.0,0.00021817,2]
[342190977,1731574239955,-253.44284885,0.00021901,3]
[342190978,1731574240151,-74.16715115,0.00021901,3]
[342190979,1731574240161,-163.8,0.00021901,3]
[342190980,1731574240170,-491.45,0.00021901,3]
[342190981,1731574240179,-500.0,0.0002191,2]
[342190982,1731574240188,-500.0,0.0002191,2]
[342190983,1731574240198,-500.0,0.0002191,2]
[342190984,1731574240207,-500.0,0.0002191,2]
[342190985,1731574240220,-500.0,0.0002191,2]
[342190986,1731574240229,-500.0,0.0002191,2]
[342190987,1731574240238,-500.0,0.0002191,2]
[342190988,1731574240248,-500.0,0.0002191,2]
[342190989,1731574240258,-500.0,0.0002191,2]
[342190990,1731574240267,-500.0,0.0002191,2]
[342190991,1731574240277,-500.0,0.0002191,2]
[342190992,1731574240286,-500.0,0.0002191,2]
[342190993,1731574240299,-500.0,0.0002191,2]
[342190994,1731574240308,-500.0,0.0002191,2]
[342190995,1731574240318,-500.0,0.0002191,2]
[342190996,1731574240327,-500.0,0.0002191,2]
[342190997,1731574240336,-500.0,0.0002191,2]
[342190998,1731574240346,-500.0,0.0002191,2]
[342190999,1731574240357,-500.0,0.0002191,2]
[342191000,1731574240366,-500.0,0.0002191,2]
[342191001,1731574240375,-500.0,0.0002191,2]
[342191002,1731574240384,-500.0,0.0002191,2]
[342191003,1731574240394,-500.0,0.0002191,2]
[342191004,1731574240403,-500.0,0.0002191,2]
[342191005,1731574240413,-500.0,0.0002191,2]
[342191006,1731574240422,-500.0,0.0002191,2]
[342191007,1731574240432,-500.0,0.0002191,2]
[342191008,1731574240441,-500.0,0.0002191,2]
[342191009,1731574240450,-500.0,0.0002191,2]
[342191010,1731574240461,-500.0,0.0002191,2]
[342191011,1731574240470,-500.0,0.0002191,2]
[342191012,1731574240480,-500.0,0.0002191,2]
[342191013,1731574240490,-500.0,0.0002191,2]
[342191014,1731574240500,-272.30202641,0.0002191,2]
[342191015,1731574240510,-500.0,0.0002191,2]
[342191016,1731574240520,-500.0,0.0002191,2]
[342191017,1731574240530,-500.0,0.0002191,2]
[342191018,1731574240544,-295.50861459,0.0002191,2]
[342191019,1731574240554,-405.37759959,0.0002191,2]
[342191020,1731574240564,-500.0,0.0002191,2]
[342191021,1731574240574,-500.0,0.0002191,2]
[342191022,1731574240584,-500.0,0.0002191,2]
[342191023,1731574240594,-500.0,0.0002191,2]
[342191024,1731574240604,-500.0,0.0002191,2]
[342191025,1731574240614,-500.0,0.0002191,2]
[342191026,1731574240624,-419.90607015,0.00021916,2]
[342191027,1731574240635,-242.97597351,0.00021916,2]
[342191028,1731574240644,-500.0,0.00021916,2]
[342191029,1731574240653,-455.13025843,0.00021916,2]
[342191030,1731574240662,-500.0,0.00021916,2]
[342191031,1731574240670,-213.10553155,0.00021916,2]
[342191032,1731574240680,-500.0,0.00021916,2]
[342191033,1731574240690,-500.0,0.00021916,2]
[342191034,1731574240700,-500.0,0.00021916,2]
[342191035,1731574240710,-196.08102564,0.00021916,2]
[342191036,1731574240720,-389.227887,0.00021916,2]
[342191037,1731574240729,-510.79903724,0.00021917,2]
[342191038,1731574240739,-202.824906,0.00021917,2]
[342191039,1731574240748,-202.824906,0.00021917,2]
[342191040,1731574240758,-202.824906,0.00021917,2]
[342191041,1731574240767,-202.824906,0.00021917,2]
[342191042,1731574240777,-202.824906,0.00021917,2]
[342191043,1731574240786,-566.00081084,0.00021917,2]
[342191044,1731574240798,-500.0,0.00021917,2]
[342191045,1731574240808,-500.0,0.00021917,2]
[342191046,1731574240818,-500.0,0.00021917,2]
[342191047,1731574240827,-620.32,0.00021917,2]
[342191048,1731574240837,-500.0,0.00021917,2]
[342191049,1731574240846,-500.0,0.00021917,2]
[342191050,1731574240855,-500.0,0.00021917,2]
[342191051,1731574240865,-500.0,0.00021917,2]
[342191052,1731574240874,-500.0,0.00021917,2]
[342191053,1731574240884,-500.0,0.00021917,2]
[342191054,1731574240893,-506.32971171,0.00021917,2]
[342191055,1731574240903,-500.0,0.00021917,2]
[342191056,1731574240913,-507.464558,0.00021917,2]
[342191057,1731574240922,-500.0,0.00021917,2]
[342191058,1731574240932,-500.0,0.00021917,2]
[342191059,1731574240941,-500.0,0.00021917,2]
[342191060,1731574240950,-511.91,0.00021917,2]
[342191061,1731574240959,-500.0,0.00021917,2]
[342191062,1731574240968,-500.0,0.00021917,2]
[342191063,1731574240978,-500.0,0.00021917,2]
[342191064,1731574240987,-543.75,0.00021917,2]
[342191065,1731574240997,-500.0,0.00021917,2]
[342191066,1731574241006,-500.0,0.00021917,2]
[342191067,1731574241016,-500.0,0.00021917,2]
[342191068,1731574241025,-560.64,0.00021917,2]
[342191069,1731574241035,-513.26,0.00021917,2]
[342191070,1731574241051,-288.82090407,0.00021917,2]
[342191071,1731574241061,-500.0,0.00021917,2]
[342191072,1731574241071,-500.0,0.00021917,2]
[342191073,1731574241080,-311.04989647,0.00021917,2]
[342191074,1731574241089,-500.0,0.00021917,2]
[342191075,1731574241099,-500.0,0.00021917,2]
[342191076,1731574241108,-528.3,0.00021917,2]
[342191077,1731574241117,-500.0,0.00021917,2]
[342191078,1731574241127,-500.0,0.00021917,2]
[342191079,1731574241136,-500.0,0.00021917,2]
[342191080,1731574241146,-515.42676376,0.00021917,2]
[342191081,1731574241155,-500.0,0.00021917,2]
[342191082,1731574241164,-594.55,0.00021917,2]
[342191083,1731574241174,-601.10976219,0.00021917,2]
[342191084,1731574241183,-559.6708629,0.00021917,2]
[342191085,1731574241192,-500.0,0.00021917,2]
[342191086,1731574241202,-626.688523,0.00021917,2]
[342191087,1731574241211,-500.0,0.00021917,2]
[342191088,1731574241224,-500.0,0.00021917,2]
[342191089,1731574241233,-500.0,0.00021917,2]
[342191090,1731574241243,-500.0,0.00021917,2]
[342191091,1731574241252,-500.0,0.00021917,2]
[342191092,1731574241263,-504.14361053,0.00021917,2]
[342191093,1731574241272,-500.0,0.00021917,2]
[342191094,1731574241282,-500.0,0.00021917,2]
[342191095,1731574241299,-500.0,0.00021917,2]
[342191096,1731574241312,-500.0,0.00021917,2]
[342191097,1731574241322,-500.0,0.00021917,2]
[342191098,1731574241331,-798.92,0.00021917,2]
[342191099,1731574241341,-500.0,0.00021917,2]
[342191100,1731574241351,-500.0,0.00021917,2]
[342191101,1731574241516,-500.0,0.00021917,2]
[342191102,1731574241526,-568.51,0.00021917,2]
[342191103,1731574241536,-500.0,0.00021917,2]
[342191104,1731574241549,-500.0,0.00021917,2]
[342191105,1731574241558,-500.0,0.00021917,2]
[342191106,1731574241568,-419.19962049,0.00021917,2]
[342191107,1731574241577,-500.0,0.00021917,2]
[342191108,1731574241587,-554.81,0.00021917,2]
[342191109,1731574241596,-500.0,0.00021917,2]
[342191110,1731574241605,-587.39926092,0.00021917,2]
[342191111,1731574241614,-500.0,0.00021917,2]
[342191112,1731574241623,-763.89,0.00021917,2]
[342191113,1731574241633,-265.9474136,0.00021917,2]
[342191114,1731574241643,-500.0,0.00021917,2]